[Event "Late-Titled-Tuesday-Blitz-April-23-2024"]
[Site "Chess.com"]
[Date "2024.04.23"]
[Round "2"]
[White "KorolDimitriy75"]
[Black "HajiyevKanan"]
[Result "0-1"]
[WhiteElo "2342"]
[BlackElo "2610"]
[TimeControl "180+1"]
[EndTime "14:17:52 PDT"]
[Termination "HajiyevKanan won on time"]

1. d4 {[%clk 0:03:00.9]} 1... d5 {[%clk 0:02:54.8]} 2. c4 {[%clk 0:03:00.9]}
2... c6 {[%clk 0:02:54.3]} 3. Nc3 {[%clk 0:03:01]} 3... Nf6 {[%clk 0:02:55]} 4.
e3 {[%clk 0:03:01]} 4... a6 {[%clk 0:02:55.6]} 5. Nf3 {[%clk 0:03:00.8]} 5...
Bf5 {[%clk 0:02:54.9]} 6. Bd3 {[%clk 0:03:00.2]} 6... Bxd3 {[%clk 0:02:55]} 7.
Qxd3 {[%clk 0:03:01.1]} 7... e6 {[%clk 0:02:55.8]} 8. O-O {[%clk 0:03:01.2]}
8... Bb4 {[%clk 0:02:55.6]} 9. Bd2 {[%clk 0:03:00.5]} 9... O-O {[%clk
0:02:55.1]} 10. Rfd1 {[%clk 0:02:33.7]} 10... a5 {[%clk 0:02:50.7]} 11. Ne2
{[%clk 0:02:12.5]} 11... Bd6 {[%clk 0:02:44.5]} 12. Nc3 {[%clk 0:02:09.8]} 12...
Nbd7 {[%clk 0:02:41.6]} 13. e4 {[%clk 0:02:09.8]} 13... dxe4 {[%clk 0:02:42.1]}
14. Nxe4 {[%clk 0:02:10.4]} 14... Nxe4 {[%clk 0:02:42.9]} 15. Qxe4 {[%clk
0:02:11.3]} 15... Qf6 {[%clk 0:02:38.8]} 16. Bg5 {[%clk 0:01:54.6]} 16... Qg6
{[%clk 0:02:38.4]} 17. Qe2 {[%clk 0:01:54.4]} 17... h6 {[%clk 0:02:37.4]} 18.
Bh4 {[%clk 0:01:54.5]} 18... Rfe8 {[%clk 0:02:30.2]} 19. Bg3 {[%clk 0:01:51.2]}
19... Bxg3 {[%clk 0:02:27.5]} 20. hxg3 {[%clk 0:01:52.1]} 20... a4 {[%clk
0:02:25.3]} 21. Rd3 {[%clk 0:01:44.4]} 21... Ra5 {[%clk 0:02:21.8]} 22. Rad1
{[%clk 0:01:20.4]} 22... Nf6 {[%clk 0:02:19.2]} 23. Ne5 {[%clk 0:01:12]} 23...
Qf5 {[%clk 0:02:07.9]} 24. Rf3 {[%clk 0:01:06.2]} 24... Qh5 {[%clk 0:02:07.6]}
25. Qd2 {[%clk 0:00:55.2]} 25... Raa8 {[%clk 0:01:58.4]} 26. Qf4 {[%clk
0:00:25]} 26... Red8 {[%clk 0:01:52.8]} 27. Rfd3 {[%clk 0:00:17.8]} 27... a3
{[%clk 0:01:40.4]} 28. b3 {[%clk 0:00:17.5]} 28... Qg5 {[%clk 0:01:32.2]} 29.
Qxg5 {[%clk 0:00:15.5]} 29... hxg5 {[%clk 0:01:33.1]} 30. g4 {[%clk 0:00:15.3]}
30... Rd6 {[%clk 0:01:30.1]} 31. f3 {[%clk 0:00:14.7]} 31... Rad8 {[%clk
0:01:29.5]} 32. Kf2 {[%clk 0:00:14.9]} 32... Ne8 {[%clk 0:01:18.3]} 33. c5
{[%clk 0:00:11.5]} 33... Rd5 {[%clk 0:01:17.8]} 34. Nc4 {[%clk 0:00:11.5]} 34...
Ra8 {[%clk 0:01:18.2]} 35. Ke3 {[%clk 0:00:11.1]} 35... Ra6 {[%clk 0:01:17.3]}
36. b4 {[%clk 0:00:10.7]} 36... Rd8 {[%clk 0:01:16.1]} 37. Rxa3 {[%clk
0:00:09.8]} 37... Rxa3+ {[%clk 0:01:12.2]} 38. Nxa3 {[%clk 0:00:10.7]} 38... Ra8
{[%clk 0:01:12.7]} 39. Rd3 {[%clk 0:00:11]} 39... Nc7 {[%clk 0:01:13.5]} 40. Rb3
{[%clk 0:00:09.6]} 40... Ra4 {[%clk 0:01:08.5]} 41. Kd3 {[%clk 0:00:08.5]} 41...
Nd5 {[%clk 0:01:08.6]} 42. Kc4 {[%clk 0:00:08.2]} 42... Kf8 {[%clk 0:01:05.6]}
43. g3 {[%clk 0:00:07.2]} 43... Ke7 {[%clk 0:01:05.7]} 44. Kd3 {[%clk
0:00:02.4]} 44... Rxb4 {[%clk 0:01:02]} 45. Rxb4 {[%clk 0:00:01.4]} 45... Nxb4+
{[%clk 0:01:02.9]} 0-1

[Event "Late-Titled-Tuesday-Blitz-April-23-2024"]
[Site "Chess.com"]
[Date "2024.04.23"]
[Round "2"]
[White "Fantastic_Power"]
[Black "super_emi_26"]
[Result "0-1"]
[WhiteElo "2689"]
[BlackElo "2708"]
[TimeControl "180+1"]
[EndTime "14:17:54 PDT"]
[Termination "super_emi_26 won on time"]

1. Nf3 {[%clk 0:02:59.4]} 1... g6 {[%clk 0:03:00.5]} 2. h4 {[%clk 0:02:58.8]}
2... Bg7 {[%clk 0:03:01.4]} 3. h5 {[%clk 0:02:58.8]} 3... d5 {[%clk 0:03:02.1]}
4. d4 {[%clk 0:02:58.5]} 4... Bg4 {[%clk 0:03:01.3]} 5. h6 {[%clk 0:02:58.3]}
5... Bf6 {[%clk 0:03:00.9]} 6. Ne5 {[%clk 0:02:57.1]} 6... Be6 {[%clk
0:03:01.1]} 7. Nc3 {[%clk 0:02:54.6]} 7... c5 {[%clk 0:03:00.3]} 8. e3 {[%clk
0:02:46.3]} 8... Nc6 {[%clk 0:02:58.5]} 9. Bb5 {[%clk 0:02:44.4]} 9... Bd7
{[%clk 0:02:53.8]} 10. Bxc6 {[%clk 0:02:26.5]} 10... Bxc6 {[%clk 0:02:54]} 11.
Nxc6 {[%clk 0:02:19.7]} 11... bxc6 {[%clk 0:02:54.9]} 12. Na4 {[%clk 0:02:19.4]}
12... cxd4 {[%clk 0:02:52.6]} 13. exd4 {[%clk 0:02:20.3]} 13... e6 {[%clk
0:02:53.1]} 14. Nc5 {[%clk 0:02:06.8]} 14... Ne7 {[%clk 0:02:52.6]} 15. c3
{[%clk 0:02:06.3]} 15... O-O {[%clk 0:02:52.4]} 16. Qf3 {[%clk 0:02:05.9]} 16...
Nf5 {[%clk 0:02:50.2]} 17. Bf4 {[%clk 0:01:59.7]} 17... Re8 {[%clk 0:02:48.3]}
18. g4 {[%clk 0:01:56.9]} 18... Nh4 {[%clk 0:02:39.9]} 19. Qg3 {[%clk
0:01:40.3]} 19... g5 {[%clk 0:02:36.6]} 20. Bc7 {[%clk 0:01:27.4]} 20... Qe7
{[%clk 0:02:35.3]} 21. Bd6 {[%clk 0:01:19.6]} 21... Qd8 {[%clk 0:02:35.1]} 22.
O-O-O {[%clk 0:01:11.2]} 22... Ng6 {[%clk 0:02:35.2]} 23. Rh5 {[%clk 0:01:06]}
23... a5 {[%clk 0:02:30.5]} 24. Nd3 {[%clk 0:00:51.9]} 24... a4 {[%clk
0:02:29.9]} 25. a3 {[%clk 0:00:51.9]} 25... Ra7 {[%clk 0:02:23.7]} 26. Be5
{[%clk 0:00:46.4]} 26... Be7 {[%clk 0:02:18.1]} 27. f4 {[%clk 0:00:43.3]} 27...
gxf4 {[%clk 0:02:14.6]} 28. Nxf4 {[%clk 0:00:38.3]} 28... Bg5 {[%clk 0:02:14.4]}
29. Kc2 {[%clk 0:00:35.6]} 29... Bxf4 {[%clk 0:02:13.5]} 30. Bxf4 {[%clk
0:00:36.5]} 30... Rb7 {[%clk 0:02:13.9]} 31. Bg5 {[%clk 0:00:28.7]} 31... Qb6
{[%clk 0:02:13.1]} 32. Rb1 {[%clk 0:00:24.5]} 32... Qb3+ {[%clk 0:02:13.3]} 33.
Kc1 {[%clk 0:00:22.7]} 33... e5 {[%clk 0:02:13.8]} 34. Qf2 {[%clk 0:00:10.2]}
34... Re6 {[%clk 0:02:13.6]} 35. Rh1 {[%clk 0:00:07.8]} 35... Rb8 {[%clk
0:02:06.4]} 36. Rf1 {[%clk 0:00:06.1]} 36... Rb7 {[%clk 0:02:06.4]} 37. Kd2
{[%clk 0:00:02.6]} 37... Qc4 {[%clk 0:01:57.6]} 38. Be3 {[%clk 0:00:02.8]} 38...
Qa2 {[%clk 0:01:56.1]} 39. Kc2 {[%clk 0:00:02.5]} 39... Qb3+ {[%clk 0:01:55.1]}
40. Kd2 {[%clk 0:00:03.1]} 40... exd4 {[%clk 0:01:51.3]} 41. Bxd4 {[%clk
0:00:04]} 41... Rbe7 {[%clk 0:01:51.2]} 42. Qf5 {[%clk 0:00:01.8]} 42... Re2+
{[%clk 0:01:50.8]} 43. Kc1 {[%clk 0:00:02.4]} 43... R2e6 {[%clk 0:01:31.2]} 44.
Qd3 {[%clk 0:00:02.3]} 44... Re2 {[%clk 0:01:17.7]} 45. Rd1 {[%clk 0:00:01.7]}
45... R7e4 {[%clk 0:01:04.8]} 46. Rd2 {[%clk 0:00:01.6]} 46... Nf4 {[%clk
0:01:04.4]} 0-1

[Event "Late-Titled-Tuesday-Blitz-April-23-2024"]
[Site "Chess.com"]
[Date "2024.04.23"]
[Round "2"]
[White "maurovargas01"]
[Black "Veleamater"]
[Result "0-1"]
[WhiteElo "1911"]
[BlackElo "2444"]
[TimeControl "180+1"]
[EndTime "14:17:54 PDT"]
[Termination "Veleamater won on time"]

1. e4 {[%clk 0:02:25.8]} 1... d6 {[%clk 0:03:00.9]} 2. Nc3 {[%clk 0:02:25.6]}
2... g6 {[%clk 0:02:57]} 3. f4 {[%clk 0:02:26.5]} 3... b6 {[%clk 0:02:53.4]} 4.
Nf3 {[%clk 0:02:27.4]} 4... Bb7 {[%clk 0:02:53.3]} 5. Bc4 {[%clk 0:02:17.2]}
5... Bg7 {[%clk 0:02:49.7]} 6. Bxf7+ {[%clk 0:02:12.1]} 6... Kxf7 {[%clk
0:02:43.9]} 7. Ng5+ {[%clk 0:02:12.3]} 7... Ke8 {[%clk 0:02:37.7]} 8. Ne6 {[%clk
0:02:11]} 8... Qd7 {[%clk 0:02:36.2]} 9. Nxg7+ {[%clk 0:02:08.8]} 9... Kf7
{[%clk 0:02:36.4]} 10. O-O {[%clk 0:02:05.3]} 10... Kxg7 {[%clk 0:02:36.1]} 11.
f5 {[%clk 0:01:57.2]} 11... Nf6 {[%clk 0:02:35.9]} 12. fxg6 {[%clk 0:01:52.1]}
12... hxg6 {[%clk 0:02:35.5]} 13. d4 {[%clk 0:01:52]} 13... Qg4 {[%clk
0:02:29.4]} 14. Qe1 {[%clk 0:01:51.7]} 14... Nbd7 {[%clk 0:02:26.9]} 15. h3
{[%clk 0:01:51]} 15... Qh4 {[%clk 0:02:25.3]} 16. Qe2 {[%clk 0:01:44.3]} 16...
Nxe4 {[%clk 0:02:17.4]} 17. Nxe4 {[%clk 0:01:43.3]} 17... Qxe4 {[%clk
0:02:16.9]} 18. Be3 {[%clk 0:01:24.1]} 18... Raf8 {[%clk 0:02:13]} 19. c3 {[%clk
0:01:17]} 19... Rxf1+ {[%clk 0:02:11.8]} 20. Rxf1 {[%clk 0:01:16.2]} 20... Nf6
{[%clk 0:02:11.2]} 21. Rf4 {[%clk 0:01:09.8]} 21... Qe6 {[%clk 0:02:03.6]} 22.
Qd2 {[%clk 0:00:55.9]} 22... Nd5 {[%clk 0:01:58.7]} 23. Rf3 {[%clk 0:00:42.3]}
23... Qe4 {[%clk 0:01:54.4]} 24. Qe2 {[%clk 0:00:37.1]} 24... Nf6 {[%clk
0:01:51.4]} 25. c4 {[%clk 0:00:28.5]} 25... Kf7 {[%clk 0:01:37.1]} 26. d5 {[%clk
0:00:27.7]} 26... Rh5 {[%clk 0:01:34.7]} 27. Rf4 {[%clk 0:00:19.6]} 27... Qb1+
{[%clk 0:01:34.5]} 28. Kh2 {[%clk 0:00:18.4]} 28... Re5 {[%clk 0:01:34.4]} 29.
Qf2 {[%clk 0:00:18.1]} 29... Qd3 {[%clk 0:01:30.2]} 30. Bd4 {[%clk 0:00:17.5]}
30... Re2 {[%clk 0:01:03.6]} 31. Qf1 {[%clk 0:00:12.2]} 31... Ke8 {[%clk
0:00:46.2]} 32. Bxf6 {[%clk 0:00:03.2]} 32... exf6 {[%clk 0:00:44.8]} 33. Rxf6
{[%clk 0:00:02]} 33... Qe4 {[%clk 0:00:42.4]} 0-1

[Event "Late-Titled-Tuesday-Blitz-April-23-2024"]
[Site "Chess.com"]
[Date "2024.04.23"]
[Round "2"]
[White "Polish_fighter3000"]
[Black "Meri-Arabidze"]
[Result "1-0"]
[WhiteElo "3120"]
[BlackElo "2679"]
[TimeControl "180+1"]
[EndTime "14:17:57 PDT"]
[Termination "Polish_fighter3000 won on time"]

1. c4 {[%clk 0:02:53.5]} 1... e5 {[%clk 0:02:59.5]} 2. b3 {[%clk 0:02:17.9]}
2... Nc6 {[%clk 0:02:59]} 3. Bb2 {[%clk 0:02:17.1]} 3... Nf6 {[%clk 0:02:57.6]}
4. a3 {[%clk 0:02:16]} 4... a5 {[%clk 0:02:53.2]} 5. e3 {[%clk 0:02:15.7]} 5...
Be7 {[%clk 0:02:49.3]} 6. Nc3 {[%clk 0:02:04.3]} 6... O-O {[%clk 0:02:48.9]} 7.
g4 {[%clk 0:02:02.6]} 7... d6 {[%clk 0:02:40.3]} 8. g5 {[%clk 0:02:02.4]} 8...
Nd7 {[%clk 0:02:40.1]} 9. h4 {[%clk 0:02:01.3]} 9... Nc5 {[%clk 0:02:38.5]} 10.
d4 {[%clk 0:01:58.6]} 10... exd4 {[%clk 0:02:25.1]} 11. exd4 {[%clk 0:01:59.5]}
11... Nxd4 {[%clk 0:02:04.8]} 12. Qxd4 {[%clk 0:02:00.4]} 12... Nxb3 {[%clk
0:02:04.9]} 13. Qd3 {[%clk 0:01:51]} 13... Nxa1 {[%clk 0:01:58.1]} 14. Bxa1
{[%clk 0:01:51.9]} 14... Re8 {[%clk 0:01:52.9]} 15. Nge2 {[%clk 0:01:51.3]}
15... c6 {[%clk 0:01:50]} 16. Bg2 {[%clk 0:01:49.6]} 16... d5 {[%clk 0:01:45.3]}
17. cxd5 {[%clk 0:01:37.8]} 17... Bxa3 {[%clk 0:01:45]} 18. O-O {[%clk
0:01:33.5]} 18... Bb4 {[%clk 0:01:39.3]} 19. Nf4 {[%clk 0:01:22.4]} 19... Bg4
{[%clk 0:01:31.3]} 20. dxc6 {[%clk 0:01:13.1]} 20... Qxd3 {[%clk 0:01:23.2]} 21.
Nxd3 {[%clk 0:01:14]} 21... Bxc3 {[%clk 0:01:23.4]} 22. cxb7 {[%clk 0:00:55.9]}
22... Rad8 {[%clk 0:01:18]} 23. Bxc3 {[%clk 0:00:55.2]} 23... Rxd3 {[%clk
0:01:17.9]} 24. Re1 {[%clk 0:00:55.5]} 24... Rf8 {[%clk 0:00:56.1]} 25. Bxa5
{[%clk 0:00:47.5]} 25... Rb3 {[%clk 0:00:35.9]} 26. Bc7 {[%clk 0:00:46.8]} 26...
h5 {[%clk 0:00:27.9]} 27. Ra1 {[%clk 0:00:35.4]} 27... Bh3 {[%clk 0:00:14.5]}
28. Bd5 {[%clk 0:00:22.7]} 28... Rb5 {[%clk 0:00:12.2]} 29. Ra8 {[%clk
0:00:22.9]} 1-0

[Event "Late-Titled-Tuesday-Blitz-April-23-2024"]
[Site "Chess.com"]
[Date "2024.04.23"]
[Round "2"]
[White "David_ATM"]
[Black "chessdjw"]
[Result "0-1"]
[WhiteElo "2455"]
[BlackElo "2801"]
[TimeControl "180+1"]
[EndTime "14:17:59 PDT"]
[Termination "chessdjw won on time"]

1. e4 {[%clk 0:03:00.9]} 1... e5 {[%clk 0:02:59.5]} 2. Nf3 {[%clk 0:03:00.9]}
2... Nc6 {[%clk 0:03:00]} 3. Bb5 {[%clk 0:03:01.5]} 3... a6 {[%clk 0:03:00.1]}
4. Ba4 {[%clk 0:03:02.1]} 4... Nf6 {[%clk 0:03:00.7]} 5. d3 {[%clk 0:03:02.7]}
5... b5 {[%clk 0:02:59]} 6. Bb3 {[%clk 0:03:02.9]} 6... Bc5 {[%clk 0:02:59.8]}
7. Nc3 {[%clk 0:03:01.9]} 7... d6 {[%clk 0:02:59]} 8. h3 {[%clk 0:03:01.1]} 8...
O-O {[%clk 0:02:54.4]} 9. Nd5 {[%clk 0:02:57]} 9... Nxd5 {[%clk 0:02:45.9]} 10.
Bxd5 {[%clk 0:02:57.9]} 10... Bd7 {[%clk 0:02:46.4]} 11. a3 {[%clk 0:02:52.6]}
11... Rb8 {[%clk 0:02:45.9]} 12. Be3 {[%clk 0:02:47.9]} 12... Bxe3 {[%clk
0:02:44]} 13. fxe3 {[%clk 0:02:48.8]} 13... Ne7 {[%clk 0:02:44.3]} 14. Ba2
{[%clk 0:02:48.2]} 14... Ng6 {[%clk 0:02:44.3]} 15. O-O {[%clk 0:02:47.6]} 15...
Qe7 {[%clk 0:02:39.1]} 16. Qe1 {[%clk 0:02:42]} 16... Be6 {[%clk 0:02:39.1]} 17.
Bxe6 {[%clk 0:02:28.1]} 17... Qxe6 {[%clk 0:02:39.3]} 18. Nh4 {[%clk 0:02:19.7]}
18... Nxh4 {[%clk 0:02:33.2]} 19. Qxh4 {[%clk 0:02:20.6]} 19... a5 {[%clk
0:02:25.1]} 20. Qf2 {[%clk 0:02:01.8]} 20... a4 {[%clk 0:02:24]} 21. Qf5 {[%clk
0:01:58.4]} 21... Qe7 {[%clk 0:02:14.4]} 22. d4 {[%clk 0:01:56.5]} 22... b4
{[%clk 0:02:11]} 23. axb4 {[%clk 0:01:45.4]} 23... Rxb4 {[%clk 0:02:11.9]} 24.
c3 {[%clk 0:01:45.9]} 24... Rxb2 {[%clk 0:02:09]} 25. Rxa4 {[%clk 0:01:46.4]}
25... Re2 {[%clk 0:01:56.3]} 26. Qf3 {[%clk 0:00:19.4]} 26... Rc2 {[%clk
0:01:54.8]} 27. Rc4 {[%clk 0:00:20]} 27... Rb8 {[%clk 0:01:52.2]} 28. Rf2 {[%clk
0:00:20.1]} 28... Rb1+ {[%clk 0:01:45.7]} 29. Kh2 {[%clk 0:00:20.1]} 29... Rcc1
{[%clk 0:01:45.8]} 30. Qg4 {[%clk 0:00:16.6]} 30... Rh1+ {[%clk 0:01:20.8]} 31.
Kg3 {[%clk 0:00:17]} 31... Rb8 {[%clk 0:01:20.3]} 32. Rb4 {[%clk 0:00:16.2]}
32... Re8 {[%clk 0:01:16.5]} 33. d5 {[%clk 0:00:14.2]} 33... g6 {[%clk
0:01:15.5]} 34. Rfb2 {[%clk 0:00:09.7]} 34... h5 {[%clk 0:01:10.7]} 35. Qf3
{[%clk 0:00:09.5]} 35... Qg5+ {[%clk 0:01:08]} 36. Kf2 {[%clk 0:00:09]} 36...
Qh4+ {[%clk 0:01:08.4]} 37. Ke2 {[%clk 0:00:02.6]} 37... Qe1+ {[%clk 0:01:08.2]}
38. Kd3 {[%clk 0:00:03.2]} 38... Qa1 {[%clk 0:00:57.4]} 39. Rb8 {[%clk
0:00:03.6]} 39... Rd1+ {[%clk 0:00:54.4]} 40. Kc4 {[%clk 0:00:01.3]} 40... Qa6+
{[%clk 0:00:44.3]} 0-1

[Event "Late-Titled-Tuesday-Blitz-April-23-2024"]
[Site "Chess.com"]
[Date "2024.04.23"]
[Round "2"]
[White "boracilek"]
[Black "rhwr"]
[Result "1-0"]
[WhiteElo "2516"]
[BlackElo "2285"]
[TimeControl "180+1"]
[EndTime "14:17:59 PDT"]
[Termination "boracilek won by resignation"]

1. d4 {[%clk 0:03:00.9]} 1... c5 {[%clk 0:02:59.7]} 2. d5 {[%clk 0:02:59.2]}
2... Nf6 {[%clk 0:03:00.3]} 3. Nc3 {[%clk 0:02:58.5]} 3... e5 {[%clk 0:03:00.9]}
4. e4 {[%clk 0:02:56.8]} 4... d6 {[%clk 0:03:01.4]} 5. Be2 {[%clk 0:02:55.2]}
5... Be7 {[%clk 0:03:01.9]} 6. Nf3 {[%clk 0:02:55.5]} 6... O-O {[%clk
0:03:02.4]} 7. O-O {[%clk 0:02:55.8]} 7... Na6 {[%clk 0:03:00.8]} 8. a4 {[%clk
0:02:50.8]} 8... Nc7 {[%clk 0:03:01]} 9. Nd2 {[%clk 0:02:51]} 9... a6 {[%clk
0:02:58.3]} 10. a5 {[%clk 0:02:50.5]} 10... Bd7 {[%clk 0:02:55.1]} 11. Nc4
{[%clk 0:02:50.5]} 11... Nb5 {[%clk 0:02:53.2]} 12. Qd3 {[%clk 0:02:31.4]} 12...
Nd4 {[%clk 0:02:48.3]} 13. f4 {[%clk 0:02:26.1]} 13... exf4 {[%clk 0:02:47.6]}
14. Bxf4 {[%clk 0:02:26.2]} 14... Bb5 {[%clk 0:02:45.7]} 15. Nxb5 {[%clk
0:02:09]} 15... axb5 {[%clk 0:02:45.6]} 16. Nb6 {[%clk 0:02:08.2]} 16... Ra6
{[%clk 0:02:46]} 17. b4 {[%clk 0:02:02.5]} 17... Nd7 {[%clk 0:02:24.9]} 18. bxc5
{[%clk 0:01:47.1]} 18... dxc5 {[%clk 0:02:23.8]} 19. d6 {[%clk 0:01:46.8]} 19...
Bf6 {[%clk 0:02:20.7]} 20. Nxd7 {[%clk 0:01:44.2]} 20... Nxe2+ {[%clk
0:02:10.9]} 21. Qxe2 {[%clk 0:01:41.9]} 21... Bd4+ {[%clk 0:02:11.4]} 22. Be3
{[%clk 0:01:31.5]} 22... Qxd7 {[%clk 0:02:10]} 23. Bxd4 {[%clk 0:01:31.8]} 23...
cxd4 {[%clk 0:02:10.2]} 24. e5 {[%clk 0:01:32.7]} 24... Re8 {[%clk 0:02:07.3]}
25. Rab1 {[%clk 0:01:05.2]} 25... Rxd6 {[%clk 0:01:58.7]} 26. Qxb5 {[%clk
0:01:01.7]} 26... Rd5 {[%clk 0:01:50.7]} 27. Qxb7 {[%clk 0:00:57.8]} 27... Qxb7
{[%clk 0:01:45.2]} 28. Rxb7 {[%clk 0:00:58.7]} 28... Rxa5 {[%clk 0:01:45.3]} 29.
Rfxf7 {[%clk 0:00:57.5]} 29... Ra1+ {[%clk 0:01:39.7]} 30. Kf2 {[%clk
0:00:57.7]} 30... Rf8 {[%clk 0:01:40.2]} 31. e6 {[%clk 0:00:52.4]} 31... Rxf7+
{[%clk 0:01:39.5]} 32. exf7+ {[%clk 0:00:53]} 32... Kf8 {[%clk 0:01:39.4]} 33.
Ke2 {[%clk 0:00:52.9]} 33... Ra3 {[%clk 0:01:35.4]} 34. Kd2 {[%clk 0:00:50.1]}
34... g5 {[%clk 0:01:28]} 35. Rd7 {[%clk 0:00:49.5]} 35... h6 {[%clk 0:01:25.5]}
36. Rxd4 {[%clk 0:00:39.9]} 36... Kxf7 {[%clk 0:01:25.4]} 37. Rd6 {[%clk
0:00:40.5]} 37... Kg7 {[%clk 0:01:25]} 38. g3 {[%clk 0:00:36.5]} 38... Rf3
{[%clk 0:01:23]} 39. c4 {[%clk 0:00:32]} 39... Rf2+ {[%clk 0:01:21.5]} 40. Kc3
{[%clk 0:00:31.5]} 40... Rxh2 {[%clk 0:01:22.4]} 41. c5 {[%clk 0:00:31]} 41...
Kf7 {[%clk 0:01:19.7]} 42. c6 {[%clk 0:00:29.3]} 42... Ke7 {[%clk 0:01:20.2]}
43. c7 {[%clk 0:00:26.8]} 43... Kxd6 {[%clk 0:01:06.1]} 44. c8=Q {[%clk
0:00:26.9]} 44... Ke5 {[%clk 0:01:06]} 45. Kd3 {[%clk 0:00:20.5]} 45... h5
{[%clk 0:01:01.5]} 46. Qc7+ {[%clk 0:00:20.6]} 46... Kf5 {[%clk 0:01:00.3]} 47.
g4+ {[%clk 0:00:21.1]} 47... Kxg4 {[%clk 0:00:57.9]} 48. Qxh2 {[%clk 0:00:22]}
48... h4 {[%clk 0:00:57.6]} 49. Ke3 {[%clk 0:00:22.2]} 49... h3 {[%clk
0:00:56.4]} 50. Ke4 {[%clk 0:00:22.6]} 50... Kh4 {[%clk 0:00:54.1]} 51. Kf5
{[%clk 0:00:23.1]} 51... g4 {[%clk 0:00:55]} 52. Kf4 {[%clk 0:00:21.9]} 52...
Kh5 {[%clk 0:00:53.3]} 53. Qg3 {[%clk 0:00:22]} 1-0

[Event "Late-Titled-Tuesday-Blitz-April-23-2024"]
[Site "Chess.com"]
[Date "2024.04.23"]
[Round "2"]
[White "SchmakAttack"]
[Black "Mackster23"]
[Result "0-1"]
[WhiteElo "2813"]
[BlackElo "2599"]
[TimeControl "180+1"]
[EndTime "14:18:04 PDT"]
[Termination "Mackster23 won by resignation"]

1. Nf3 {[%clk 0:03:00.9]} 1... Nf6 {[%clk 0:02:59.2]} 2. c4 {[%clk 0:03:00.2]}
2... e6 {[%clk 0:02:59.2]} 3. e3 {[%clk 0:02:59.1]} 3... c5 {[%clk 0:02:55.1]}
4. b3 {[%clk 0:02:58.7]} 4... b6 {[%clk 0:02:51.7]} 5. Bb2 {[%clk 0:02:58.6]}
5... Bb7 {[%clk 0:02:51.9]} 6. Nc3 {[%clk 0:02:57.5]} 6... Nc6 {[%clk
0:02:51.5]} 7. Be2 {[%clk 0:02:49.6]} 7... d5 {[%clk 0:02:48.8]} 8. cxd5 {[%clk
0:02:49.9]} 8... Nxd5 {[%clk 0:02:40.3]} 9. O-O {[%clk 0:02:34.7]} 9... Nf6
{[%clk 0:02:33.4]} 10. Qc2 {[%clk 0:02:20.3]} 10... Rc8 {[%clk 0:02:28.9]} 11.
Rad1 {[%clk 0:02:16]} 11... Be7 {[%clk 0:02:26]} 12. d4 {[%clk 0:02:16.1]} 12...
cxd4 {[%clk 0:02:25.4]} 13. Nxd4 {[%clk 0:02:17]} 13... Nxd4 {[%clk 0:02:23.6]}
14. Rxd4 {[%clk 0:02:17.9]} 14... Qc7 {[%clk 0:02:22.6]} 15. Rc4 {[%clk
0:01:54.2]} 15... Qb8 {[%clk 0:01:56.9]} 16. Rxc8+ {[%clk 0:01:53.7]} 16... Qxc8
{[%clk 0:01:57.6]} 17. Bb5+ {[%clk 0:01:53.5]} 17... Kf8 {[%clk 0:01:52.8]} 18.
Rd1 {[%clk 0:01:48.5]} 18... h5 {[%clk 0:01:51.8]} 19. Be2 {[%clk 0:01:34.7]}
19... h4 {[%clk 0:01:49.7]} 20. h3 {[%clk 0:01:35]} 20... Rh6 {[%clk 0:01:46.9]}
21. Bd3 {[%clk 0:01:24.1]} 21... Qc6 {[%clk 0:01:38.8]} 22. f3 {[%clk
0:01:20.6]} 22... Bc5 {[%clk 0:01:33.4]} 23. Qe2 {[%clk 0:01:12.6]} 23... Qc7
{[%clk 0:00:55.9]} 24. a3 {[%clk 0:00:48.7]} 24... Nh5 {[%clk 0:00:46.6]} 25. b4
{[%clk 0:00:43]} 25... Nf4 {[%clk 0:00:33.3]} 26. Qd2 {[%clk 0:00:34.1]} 26...
Nxh3+ {[%clk 0:00:21.8]} 27. gxh3 {[%clk 0:00:25.7]} 27... Qg3+ {[%clk
0:00:21.5]} 28. Qg2 {[%clk 0:00:26.2]} 28... Bxe3+ {[%clk 0:00:20.7]} 29. Kf1
{[%clk 0:00:27]} 29... Bxf3 {[%clk 0:00:19.3]} 30. Qxg3 {[%clk 0:00:16.8]} 30...
hxg3 {[%clk 0:00:20.2]} 31. Ne2 {[%clk 0:00:14.7]} 31... Rxh3 {[%clk 0:00:13.1]}
32. Bd4 {[%clk 0:00:06.1]} 32... Rh1+ {[%clk 0:00:12.2]} 0-1